[Event "WYCC 2018 G18"]
[Site "Halkidiki"]
[Date "2018.10.27"]
[Round "8"]
[White "Tarini Goyal"]
[Black "Muratova, Saltanat"]
[Result "1-0"]
[ECO "E04"]
[WhiteElo "2026"]
[BlackElo "1859"]
[Annotator "NA"]
[PlyCount "131"]
[EventDate "2018.10.20"]
[EventType "swiss"]
[EventCountry "GRE"]
[SourceTitle "playchess.com"]
[Source "ChessBase"]
[SourceQuality "1"]
[TimeControl "40/5400+30:1800+30"]

1. d4 {[%emt 0:00:00]} d5 {[%emt 0:00:00]} 2. c4 {[%emt 0:00:00]} e6 {[%emt 0:00:00]} 3. Nf3 {[%emt 0:00:09]} Nf6 {[%emt 0:00:00]} 4. g3 {[%emt 0:00:06]} dxc4 {[%emt 0:00:18]} 5. Bg2 {[%emt 0:00:06]} Nc6 {[%emt 0:00:06]} 6. O-O {[%emt 0:01:01]} a6 7. Bg5 {[%emt 0:20:11]} Be7 {[%emt 0:01:19]} 8. a4 {[%emt 0:03:07]} Na5 {[%emt 0:01:48]} 9. Nbd2 {[%emt 0:02:23]} h6 {[%emt 0:04:48]} 10. Bf4 {[%emt 0:06:03]} Nd5 {[%emt 0:08:40]} 11. Be5 {[%emt 0:06:24]} O-O {[%emt 0:04:55]} 12. e4 {[%emt 0:16:43]} Nb4 {[%emt 0:05:40]} 13. Bf4 {[%emt 0:04:35]} c5 {[%emt 0:08:40]} 14. Be3 {[%emt 0:03:24]} cxd4 {[%emt 0:01:56]} 15. Bxd4 {[%emt 0:01:41]} b5 {[%emt 0:06:06]} 16. Bc3 {[%emt 0:06:32]} Bb7 {[%emt 0:03:10]} 17. axb5 {[%emt 0:01:24]} axb5 {[%emt 0:00:07]} 18. Nd4 {[%emt 0:00:15]} Qb6 {[%emt 0:05:54]} 19. Qg4 {[%emt 0:05:06]} g6 {[%emt 0:06:22]} 20. Qf4 {[%emt 0:07:27]} Nd3 {[%emt 0:19:37]} 21. Qxh6 {[%emt 0:00:20]} e5 {[%emt 0:01:26]} 22. Nf5 {[%emt 0:02:40]} Bf6 {[%emt 0:08:24]} 23. Nf3 {[%emt 0:02:06]} Rfd8 {[%emt 0:00:16]} 24. Ng5 {[%emt 0:02:40]} Rd7 {[%emt 0:00:05]} 25. Rxa5 {[%emt 0:03:21]} Rxa5 {[%emt 0:00:22]} 26. Bxa5 {[%emt 0:00:04]} Qxa5 {[%emt 0:00:10]} 27. Qh7+ {[%emt 0:00:40]} Kf8 {[%emt 0:00:07]} 28. Ne6+ {[%emt 0:01:00]} fxe6 {[%emt 0:01:01]} 29. Qxd7 {[%emt 0:00:08]} exf5 {[%emt 0:02:11]} 30. Qxb7 {[%emt 0:00:21]} f4 {[%emt 0:00:51]} 31. Bh3 {[%emt 0:02:14]} f3 {[%emt 0:05:56]} 32. Be6 {[%emt 0:00:52]} Be7 {[%emt 0:00:04]} 33. Qb8+ {[%emt 0:01:25]} Bd8 {[%emt 0:00:09]} 34. Qd6+ {[%emt 0:01:36]} Be7 {[%emt 0:00:05]} 35. Qb8+ {[%emt 0:00:08]} Bd8 {[%emt 0:00:11]} 36. Bd5 {[%emt 0:00:12]} Qb6 {[%emt 0:00:42]} 37. Qc8 {[%emt 0:01:14]} Nxb2 {[%emt 0:03:03]} 38. Qd7 {[%emt 0:00:11]} Be7 {[%emt 0:01:29]} 39. Qc8+ {[%emt 0:00:09]} Bd8 {[%emt 0:01:26]} 40. Qd7 {[%emt 0:00:00]} Be7 {[%emt 0:00:00]} 41. Ra1 {[%emt 0:09:21]} Na4 {[%emt 0:01:26]} 42. Bc6 {[%emt 0:05:19]} Qc5 {[%emt 0:16:01]} 43. Bxb5 {[%emt 0:09:55]} Nb6 {[%emt 0:04:04]} 44. Qc6 {[%emt 0:02:32]} Qxc6 {[%emt 0:02:53]} 45. Bxc6 {[%emt 0:00:06]} c3 {[%emt 0:02:31]} 46. Bb5 {[%emt 0:00:12]} Bc5 {[%emt 0:01:18]} 47. h4 {[%emt 0:01:24]} Bd4 {[%emt 0:02:06]} 48. Ra2 {[%emt 0:00:13]} Kg7 {[%emt 0:00:12]} 49. g4 {[%emt 0:00:48]} Nc8 {[%emt 0:00:24]} 50. Kh2 {[%emt 0:00:06]} Na7 {[%emt 0:00:14]} 51. Bd7 {[%emt 0:00:40]} Kf7 {[%emt 0:00:03]} 52. Kg3 {[%emt 0:02:20]} Ke7 {[%emt 0:00:30]} 53. Ba4 {[%emt 0:00:48]} Nc8 {[%emt 0:00:03]} 54. Kxf3 {[%emt 0:00:07]} Nb6 55. Bb5 {[%emt 0:00:32]} Nc8 {[%emt 0:00:38]} 56. h5 {[%emt 0:00:04]} gxh5 {[%emt 0:00:06]} 57. gxh5 {[%emt 0:00:30]} Kf6 {[%emt 0:00:47]} 58. Kg4 {[%emt 0:00:13]} Nd6 {[%emt 0:00:10]} 59. Bd3 {[%emt 0:00:07]} Nf7 {[%emt 0:01:44]} 60. Ra6+ {[%emt 0:00:38]} Kg7 {[%emt 0:00:03]} 61. f3 {[%emt 0:01:17]} Nh6+ {[%emt 0:00:08]} 62. Kh4 {[%emt 0:00:08]} Bf2+ {[%emt 0:00:09]} 63. Kh3 {[%emt 0:00:05]} Be3 {[%emt 0:00:11]} 64. Bc2 {[%emt 0:00:49]} Ng8 {[%emt 0:02:20]} 65. Rg6+ {[%emt 0:00:27]} Kf7 {[%emt 0:01:49]} 66. Bb3+ {[%emt 0:00:13]} 1-0

[Event "WYCC 2018 G18"]
[Site "Halkidiki"]
[Date "2018.10.27"]
[Round "8"]
[White "Greibrokk, Ingrid"]
[Black "Hunt, Fikirte"]
[Result "1-0"]
[ECO "A16"]
[WhiteElo "2018"]
[BlackElo "1827"]
[Annotator "NA"]
[PlyCount "91"]
[EventDate "2018.10.20"]
[EventType "swiss"]
[EventCountry "GRE"]
[SourceTitle "playchess.com"]
[Source "ChessBase"]
[SourceQuality "1"]
[TimeControl "40/5400+30:1800+30"]

1. c4 {[%emt 0:00:00]} Nf6 {[%emt 0:00:00]} 2. Nc3 {[%emt 0:00:00]} g6 {[%emt 0:00:00]} 3. g3 {[%emt 0:00:00]} d5 {[%emt 0:00:21]} 4. cxd5 {[%emt 0:00:00]} Nxd5 {[%emt 0:00:05]} 5. Bg2 {[%emt 0:00:12]} Nxc3 {[%emt 0:00:10]} 6. bxc3 {[%emt 0:00:06]} Bg7 {[%emt 0:00:04]} 7. Nf3 {[%emt 0:00:32]} c5 {[%emt 0:00:51]} 8. O-O {[%emt 0:00:18]} O-O {[%emt 0:00:05]} 9. d4 {[%emt 0:04:31]} Qa5 $14 {[%emt 0:00:56] LiveBook: 9 Games} 10. Qb3 {[%emt 0:05:08]} Nc6 {[%emt 0:08:26]} 11. Bb2 {[%emt 0:13:48]} Rd8 {[%emt 0:10:17]} 12. d5 {[%emt 0:06:34]} c4 {[%emt 0:07:30]} 13. Qxc4 {[%emt 0:00:15]} Rxd5 {[%emt 0:00:23]} 14. Nd4 {[%emt 0:01:12]} Rc5 {[%emt 0:01:42]} 15. Nxc6 {[%emt 0:00:18]} bxc6 {[%emt 0:00:59]} 16. Qb4 {[%emt 0:04:26]} Ba6 {[%emt 0:16:59]} 17. Ba3 {[%emt 0:04:39]} Qxb4 {[%emt 0:04:14]} 18. Bxb4 {[%emt 0:00:14]} Re5 {[%emt 0:00:37]} 19. Bxc6 {[%emt 0:01:19]} Rc8 {[%emt 0:00:07]} 20. Bf3 {[%emt 0:01:36]} Bxe2 {[%emt 0:00:58]} 21. Bxe2 {[%emt 0:00:05]} Rxe2 {[%emt 0:00:07]} 22. Rfe1 {[%emt 0:05:23]} Rb2 {[%emt 0:04:33]} 23. Rab1 {[%emt 0:01:06]} Bxc3 24. Rxb2 {[%emt 0:01:33]} Bxb2 {[%emt 0:04:43]} 25. Bxe7 {[%emt 0:02:29]} Bd4 {[%emt 0:01:28]} 26. Rd1 {[%emt 0:01:35]} Bb6 {[%emt 0:00:09]} 27. Rd2 {[%emt 0:00:43]} f5 {[%emt 0:05:33]} 28. Bg5 {[%emt 0:02:37]} Rc7 {[%emt 0:04:01]} 29. Kg2 {[%emt 0:01:44]} Kf7 {[%emt 0:00:51]} 30. Bd8 {[%emt 0:00:21]} Rb7 {[%emt 0:00:30]} 31. Bxb6 {[%emt 0:00:48]} axb6 {[%emt 0:00:05]} 32. Rb2 {[%emt 0:00:29]} Ke7 {[%emt 0:00:25]} 33. a4 {[%emt 0:00:19]} Kd7 {[%emt 0:00:07]} 34. a5 {[%emt 0:00:17]} Kc7 {[%emt 0:00:07]} 35. axb6+ {[%emt 0:00:10]} Kd6 {[%emt 0:14:32]} 36. Kf3 {[%emt 0:02:55]} Ke5 {[%emt 0:00:59]} 37. h4 {[%emt 0:00:33]} h5 {[%emt 0:00:14]} 38. Rb5+ {[%emt 0:00:13]} Ke6 {[%emt 0:00:38]} 39. Kf4 {[%emt 0:00:15]} Kf6 {[%emt 0:00:13]} 40. Rb4 {[%emt 0:00:00]} Ke6 {[%emt 0:00:00]} 41. Rb5 {[%emt 0:03:41]} Kf6 {[%emt 0:00:51]} 42. Ke3 {[%emt 0:00:36]} Ke6 {[%emt 0:00:15]} 43. Kd4 {[%emt 0:00:08]} Kd6 {[%emt 0:00:38]} 44. Kc4 {[%emt 0:00:10]} Kc6 {[%emt 0:00:26]} 45. Rc5+ {[%emt 0:00:12]} Kd6 {[%emt 0:00:21]} 46. Kb5 1-0

[Event "WYCC 2018 G18"]
[Site "Halkidiki"]
[Date "2018.10.27"]
[Round "8"]
[White "Du, Yuxin"]
[Black "Buchta, Agnieszka"]
[Result "1-0"]
[ECO "B98"]
[WhiteElo "2011"]
[BlackElo "1879"]
[Annotator "NA"]
[PlyCount "111"]
[EventDate "2018.10.20"]
[EventType "swiss"]
[EventCountry "GRE"]
[SourceTitle "playchess.com"]
[Source "ChessBase"]
[SourceQuality "1"]
[TimeControl "40/5400+30:1800+30"]

1. e4 {[%emt 0:00:00]} c5 {[%emt 0:00:00]} 2. Nf3 {[%emt 0:00:00]} e6 {[%emt 0:00:00]} 3. d4 {[%emt 0:01:03]} cxd4 {[%emt 0:00:22]} 4. Nxd4 {[%emt 0:00:10]} Nf6 {[%emt 0:00:09]} 5. Nc3 {[%emt 0:00:52]} d6 6. Bg5 {[%emt 0:08:56]} a6 {[%emt 0:17:13]} 7. f4 {[%emt 0:04:08]} h6 {[%emt 0:01:32]} 8. Bh4 {[%emt 0:00:48]} Be7 {[%emt 0:01:14]} 9. Qf3 {[%emt 0:13:14]} Qc7 {[%emt 0:11:33]} 10. O-O-O {[%emt 0:15:03]} Nc6 {[%emt 0:16:06]} 11. Bf2 {[%emt 0:04:41]} Bd7 {[%emt 0:06:20]} 12. Bd3 {[%emt 0:22:43]} O-O-O {[%emt 0:07:27]} 13. h3 {[%emt 0:03:40]} Kb8 {[%emt 0:02:59]} 14. Qe3 {[%emt 0:05:49]} Nxd4 {[%emt 0:09:17]} 15. Qxd4 {[%emt 0:00:00]} Qc5 {[%emt 0:00:55]} 16. e5 {[%emt 0:02:51]} Qxd4 {[%emt 0:02:13]} 17. Bxd4 {[%emt 0:00:06]} dxe5 {[%emt 0:02:31]} 18. fxe5 {[%emt 0:05:41]} Nd5 {[%emt 0:03:36]} 19. Nxd5 {[%emt 0:02:00]} exd5 {[%emt 0:00:03]} 20. Rdf1 {[%emt 0:03:24]} Be6 {[%emt 0:01:17]} 21. Bf5 {[%emt 0:00:43]} Rhf8 {[%emt 0:04:36]} 22. Rf3 {[%emt 0:00:50]} Kc7 {[%emt 0:02:16]} 23. Rhf1 {[%emt 0:00:57]} Kd7 {[%emt 0:02:47]} 24. g4 {[%emt 0:01:07]} Rc8 {[%emt 0:01:10]} 25. Kd2 {[%emt 0:02:38]} Bc5 {[%emt 0:04:57]} 26. c3 {[%emt 0:00:36]} Rc7 {[%emt 0:00:55]} 27. Bd3 {[%emt 0:00:49]} Be7 {[%emt 0:01:19]} 28. b4 {[%emt 0:00:31]} Rfc8 {[%emt 0:00:38]} 29. a4 {[%emt 0:00:30]} a5 {[%emt 0:00:33]} 30. Bb5+ {[%emt 0:00:34]} Kd8 {[%emt 0:00:28]} 31. Bb6 {[%emt 0:00:22]} axb4 {[%emt 0:00:16]} 32. cxb4 {[%emt 0:00:24]} Bxb4+ {[%emt 0:00:11]} 33. Kd3 {[%emt 0:00:43]} Ke7 {[%emt 0:00:40]} 34. Bxc7 {[%emt 0:00:23]} Rxc7 {[%emt 0:00:01]} 35. Ke2 {[%emt 0:00:38]} Bc3 {[%emt 0:01:00]} 36. Rc1 {[%emt 0:00:27]} Bxe5 {[%emt 0:00:14]} 37. Rxc7+ {[%emt 0:00:08]} Bxc7 {[%emt 0:00:01]} 38. Bd3 {[%emt 0:00:52]} Bd6 {[%emt 0:00:46]} 39. Bf5 {[%emt 0:00:29]} b6 {[%emt 0:01:06]} 40. Kd2 {[%emt 0:00:00]} Bc5 {[%emt 0:00:00]} 41. Rf1 {[%emt 0:09:13]} Kd6 {[%emt 0:03:43]} 42. Kd3 {[%emt 0:03:25]} Ke5 {[%emt 0:12:17]} 43. Bxe6 {[%emt 0:05:17]} fxe6 {[%emt 0:02:08]} 44. Rf7 {[%emt 0:00:10]} g6 {[%emt 0:01:11]} 45. h4 {[%emt 0:01:13]} h5 {[%emt 0:05:31]} 46. g5 {[%emt 0:03:33]} Bb4 {[%emt 0:02:38]} 47. Ke2 {[%emt 0:01:00]} d4 {[%emt 0:01:47]} 48. Rf6 {[%emt 0:00:58]} d3+ {[%emt 0:05:15]} 49. Kd1 {[%emt 0:04:06]} d2 {[%emt 0:00:36]} 50. Rxg6 {[%emt 0:00:37]} Kf5 {[%emt 0:00:19]} 51. Rf6+ {[%emt 0:00:58]} Ke5 {[%emt 0:00:48]} 52. Rf7 {[%emt 0:02:13]} Bc3 {[%emt 0:00:28]} 53. g6 {[%emt 0:00:13]} Ke4 {[%emt 0:00:36]} 54. g7 {[%emt 0:00:12]} Bxg7 {[%emt 0:00:30]} 55. Rxg7 {[%emt 0:00:06]} Ke3 {[%emt 0:00:31]} 56. Rg5 {[%emt 0:00:16]} 1-0

[Event "WYCC 2018 G18"]
[Site "Halkidiki"]
[Date "2018.10.27"]
[Round "8"]
[White "Priyanka, Kumari"]
[Black "Cvitan, Ena"]
[Result "1/2-1/2"]
[ECO "B10"]
[WhiteElo "2005"]
[BlackElo "2034"]
[Annotator "NA"]
[PlyCount "94"]
[EventDate "2018.10.20"]
[EventType "swiss"]
[EventCountry "GRE"]
[SourceTitle "playchess.com"]
[Source "ChessBase"]
[SourceQuality "1"]
[TimeControl "40/5400+30:1800+30"]

1. e4 {[%emt 0:00:05]} c6 {[%emt 0:00:00]} 2. Nc3 {[%emt 0:00:12]} d5 {[%emt 0:00:00]} 3. Nf3 {[%emt 0:00:13]} dxe4 {[%emt 0:00:00]} 4. Nxe4 {[%emt 0:00:08]} Nf6 {[%emt 0:00:00]} 5. Qe2 {[%emt 0:00:10]} Nxe4 {[%emt 0:00:20]} 6. Qxe4 {[%emt 0:00:06]} Qa5 7. Bc4 {[%emt 0:15:21]} Qf5 {[%emt 0:06:58]} 8. Qxf5 {[%emt 0:10:00]} Bxf5 {[%emt 0:00:04]} 9. d3 {[%emt 0:00:49]} e6 {[%emt 0:02:33]} 10. Bf4 {[%emt 0:02:47]} Be7 {[%emt 0:03:56]} 11. O-O-O {[%emt 0:00:51]} Nd7 {[%emt 0:06:32]} 12. Rhe1 {[%emt 0:03:59]} Bg4 {[%emt 0:06:22]} 13. d4 {[%emt 0:08:17]} Bxf3 {[%emt 0:06:30]} 14. gxf3 {[%emt 0:00:07]} Nb6 {[%emt 0:03:49]} 15. Bb3 {[%emt 0:01:13]} O-O {[%emt 0:04:05]} 16. c4 {[%emt 0:03:35]} Bf6 {[%emt 0:03:59]} 17. Re2 {[%emt 0:03:29]} Rfd8 {[%emt 0:05:43]} 18. Red2 {[%emt 0:02:45]} Rd7 {[%emt 0:01:43]} 19. Be3 {[%emt 0:01:44]} Rc8 {[%emt 0:07:45]} 20. Kb1 {[%emt 0:01:37]} Rcd8 {[%emt 0:01:16]} 21. a4 {[%emt 0:01:31]} Kf8 {[%emt 0:01:03]} 22. a5 {[%emt 0:03:25]} Nc8 {[%emt 0:00:32]} 23. d5 {[%emt 0:02:25]} exd5 {[%emt 0:02:29]} 24. cxd5 {[%emt 0:00:13]} cxd5 {[%emt 0:00:23]} 25. Bxd5 {[%emt 0:06:02]} b6 {[%emt 0:02:55]} 26. a6 {[%emt 0:05:23]} Ne7 {[%emt 0:03:36]} 27. Be4 {[%emt 0:05:05]} Rxd2 {[%emt 0:00:07]} 28. Rxd2 {[%emt 0:00:29]} Rxd2 {[%emt 0:00:24]} 29. Bxd2 {[%emt 0:00:05]} Bd4 {[%emt 0:06:02]} 30. Bf4 {[%emt 0:02:23]} f5 {[%emt 0:04:36]} 31. Bd3 {[%emt 0:00:31]} Bxf2 {[%emt 0:03:24]} 32. Bb8 {[%emt 0:00:29]} Nc6 {[%emt 0:01:09]} 33. Bd6+ {[%emt 0:00:19]} Kf7 {[%emt 0:01:28]} 34. Bxf5 {[%emt 0:00:48]} Bc5 {[%emt 0:01:14]} 35. Bg3 {[%emt 0:00:39]} Nb4 {[%emt 0:01:33]} 36. Bc8 {[%emt 0:00:25]} Ke7 {[%emt 0:01:23]} 37. h3 {[%emt 0:04:43]} g5 {[%emt 0:01:03]} 38. Be1 {[%emt 0:01:34]} Kd6 {[%emt 0:02:09]} 39. Bf5 {[%emt 0:04:24]} h6 {[%emt 0:02:34]} 40. Bc3 {[%emt 0:00:00]} Nxa6 {[%emt 0:00:00]} 41. Bg7 {[%emt 0:07:39]} Nc7 {[%emt 0:13:47]} 42. Bxh6 {[%emt 0:07:28]} Ke5 {[%emt 0:00:50]} 43. Bg4 {[%emt 0:00:59]} Be7 {[%emt 0:01:00]} 44. Bg7+ {[%emt 0:04:09]} Kf4 {[%emt 0:00:39]} 45. Kc2 {[%emt 0:00:22]} Nd5 {[%emt 0:02:48]} 46. Bd4 {[%emt 0:10:13]} Ne3+ {[%emt 0:00:35]} 47. Bxe3+ {[%emt 0:00:16]} Kxe3 {[%emt 0:00:20]} 1/2-1/2

[Event "WYCC 2018 G18"]
[Site "Halkidiki"]
[Date "2018.10.27"]
[Round "8"]
[White "Stashis, Anna"]
[Black "Nguyen, Thi Minh Thu"]
[Result "0-1"]
[ECO "B12"]
[WhiteElo "1979"]
[BlackElo "1849"]
[Annotator "NA"]
[PlyCount "76"]
[EventDate "2018.10.20"]
[EventType "swiss"]
[EventCountry "GRE"]
[SourceTitle "playchess.com"]
[Source "ChessBase"]
[SourceQuality "1"]
[TimeControl "40/5400+30:1800+30"]

1. e4 {[%emt 0:00:00]} c6 {[%emt 0:00:09]} 2. d4 {[%emt 0:01:35]} d5 {[%emt 0:00:11]} 3. e5 {[%emt 0:01:06]} Bf5 {[%emt 0:00:29]} 4. Nf3 {[%emt 0:00:15]} e6 {[%emt 0:00:42]} 5. Be2 {[%emt 0:01:12]} c5 {[%emt 0:00:40]} 6. Be3 {[%emt 0:02:04]} Nc6 {[%emt 0:01:33]} 7. O-O {[%emt 0:05:11] LiveBook: 88 Games} Qb6 $16 {[%emt 0:01:01]} (7... cxd4 $11 8. Nxd4 (8. Bxd4 Nge7 $11) 8... Nge7) 8. Nc3 {[%emt 0:21:42]} Qxb2 {[%emt 0:03:46]} 9. Nb5 {[%emt 0:00:17]} Rc8 {[%emt 0:02:43]} 10. dxc5 {[%emt 0:03:28]} Qxc2 {[%emt 0:00:49]} 11. Qxc2 {[%emt 0:07:58]} Bxc2 {[%emt 0:00:08]} 12. Nfd4 {[%emt 0:04:30]} Nxd4 {[%emt 0:03:12]} 13. Nxd4 {[%emt 0:01:14]} Ba4 {[%emt 0:00:57]} 14. Rab1 {[%emt 0:03:33]} Bxc5 {[%emt 0:02:38]} 15. Rxb7 {[%emt 0:01:54]} Nh6 {[%emt 0:00:24]} 16. Nb5 {[%emt 0:11:21]} O-O {[%emt 0:01:40]} 17. Nxa7 {[%emt 0:01:07]} Bxa7 {[%emt 0:00:29]} 18. Rxa7 {[%emt 0:00:05]} Ra8 {[%emt 0:00:29]} 19. Rxa8 {[%emt 0:07:17]} Rxa8 {[%emt 0:00:07]} 20. Bxh6 {[%emt 0:00:40]} gxh6 {[%emt 0:00:09]} 21. Rc1 {[%emt 0:00:24]} Rb8 {[%emt 0:01:04]} 22. Bd1 {[%emt 0:10:24]} Bxd1 {[%emt 0:01:25]} 23. Rxd1 {[%emt 0:00:04]} Rb4 {[%emt 0:00:20]} 24. f3 {[%emt 0:01:41]} Ra4 {[%emt 0:00:17]} 25. Rd2 {[%emt 0:00:14]} Kg7 {[%emt 0:00:24]} 26. g3 {[%emt 0:01:56]} Kg6 {[%emt 0:00:09]} 27. f4 {[%emt 0:01:24]} Kf5 {[%emt 0:00:15]} 28. Kf2 {[%emt 0:00:51]} h5 {[%emt 0:00:09]} 29. Ke3 {[%emt 0:02:37]} h4 {[%emt 0:01:39]} 30. gxh4 {[%emt 0:02:59]} Re4+ {[%emt 0:00:26]} 31. Kd3 {[%emt 0:00:32]} Rxf4 {[%emt 0:00:07]} 32. Kc3 {[%emt 0:00:42]} Kxe5 {[%emt 0:00:14]} 33. Kb3 {[%emt 0:00:09]} Rc4 {[%emt 0:01:07]} 34. a4 {[%emt 0:00:26]} Kd6 {[%emt 0:00:05]} 35. Rg2 {[%emt 0:01:17]} Rxh4 {[%emt 0:00:42]} 36. Rc2 {[%emt 0:00:17]} Rc4 {[%emt 0:00:23]} 37. Rxc4 {[%emt 0:00:26]} dxc4+ {[%emt 0:00:06]} 38. Kxc4 {[%emt 0:00:03]} Kc6 {[%emt 0:00:08]} 0-1

[Event "WYCC 2018 G18"]
[Site "Halkidiki"]
[Date "2018.10.27"]
[Round "8"]
[White "Manova, Ivana"]
[Black "Perminaite, Guoda"]
[Result "1/2-1/2"]
[ECO "C54"]
[WhiteElo "1951"]
[BlackElo "1840"]
[Annotator "NA"]
[PlyCount "99"]
[EventDate "2018.10.20"]
[EventType "swiss"]
[EventCountry "GRE"]
[SourceTitle "playchess.com"]
[Source "ChessBase"]
[SourceQuality "1"]
[TimeControl "40/5400+30:1800+30"]

1. e4 {[%emt 0:00:00]} e5 {[%emt 0:00:00]} 2. Nf3 Nc6 3. d4 {[%emt 0:00:06]} exd4 {[%emt 0:00:02]} 4. Bc4 {[%emt 0:00:17]} Bc5 {[%emt 0:01:03]} 5. c3 {[%emt 0:00:37]} Nf6 {[%emt 0:00:28]} 6. e5 {[%emt 0:00:38]} d5 {[%emt 0:03:27]} 7. Bb5 Ne4 8. cxd4 {[%emt 0:01:37]} Bb6 {[%emt 0:01:06]} 9. Nc3 {[%emt 0:00:53]} O-O {[%emt 0:11:43]} 10. Be3 {[%emt 0:02:10]} Bg4 {[%emt 0:07:54]} 11. O-O {[%emt 0:19:50]} Ba5 {[%emt 0:17:49]} 12. Bxc6 {[%emt 0:14:11]} bxc6 {[%emt 0:02:02]} 13. Na4 {[%emt 0:07:06]} f6 {[%emt 0:07:04]} 14. Qd3 {[%emt 0:07:03]} Bb6 {[%emt 0:05:14]} 15. Nd2 {[%emt 0:09:23]} Bf5 {[%emt 0:03:00]} 16. Nxe4 {[%emt 0:04:56]} Bxe4 {[%emt 0:01:54]} 17. Qc3 {[%emt 0:02:46]} fxe5 {[%emt 0:02:07]} 18. Nxb6 {[%emt 0:00:09]} exd4 {[%emt 0:06:27]} 19. Bxd4 {[%emt 0:01:14]} axb6 {[%emt 0:00:30]} 20. f3 {[%emt 0:01:44]} Bg6 {[%emt 0:02:41]} 21. Qxc6 {[%emt 0:09:13]} Re8 {[%emt 0:05:40]} 22. f4 {[%emt 0:01:10]} Bf5 {[%emt 0:00:58]} 23. Be5 {[%emt 0:02:19]} Ra7 {[%emt 0:04:14]} 24. Rad1 {[%emt 0:05:04]} Be4 {[%emt 0:02:26]} 25. Rfe1 {[%emt 0:00:37]} Qa8 {[%emt 0:00:40]} 26. Rc1 {[%emt 0:05:20]} Re7 {[%emt 0:03:08]} 27. a3 {[%emt 0:01:11]} Qd8 {[%emt 0:03:06]} 28. Re3 {[%emt 0:01:37]} Qd7 {[%emt 0:01:41]} 29. Rec3 {[%emt 0:02:11]} Qxc6 {[%emt 0:02:35]} 30. Rxc6 {[%emt 0:00:01]} d4 {[%emt 0:02:37]} 31. Rxc7 {[%emt 0:00:11]} Raxc7 {[%emt 0:00:37]} 32. Rxc7 {[%emt 0:00:02]} Rxc7 {[%emt 0:00:09]} 33. Bxc7 {[%emt 0:00:02]} d3 {[%emt 0:01:01]} 34. Kf2 {[%emt 0:01:08]} b5 {[%emt 0:00:05]} 35. g3 {[%emt 0:01:10]} h5 {[%emt 0:00:37]} 36. Ke3 {[%emt 0:00:52]} Bf5 {[%emt 0:00:27]} 37. b3 {[%emt 0:01:00]} Kf7 {[%emt 0:01:05]} 38. a4 {[%emt 0:00:23]} bxa4 {[%emt 0:00:16]} 39. bxa4 {[%emt 0:00:02]} Bd7 {[%emt 0:00:16]} 40. a5 {[%emt 0:00:00]} Bb5 {[%emt 0:00:00]} 41. h3 {[%emt 0:02:10]} Ke6 {[%emt 0:01:57]} 42. g4 {[%emt 0:00:54]} hxg4 {[%emt 0:00:23]} 43. hxg4 {[%emt 0:00:04]} g6 {[%emt 0:00:10]} 44. Bd8 {[%emt 0:01:29]} Kd5 {[%emt 0:02:22]} 45. Bg5 {[%emt 0:02:21]} Kc6 {[%emt 0:05:12]} 46. f5 {[%emt 0:01:36]} gxf5 {[%emt 0:00:24]} 47. gxf5 {[%emt 0:00:06]} Kb7 {[%emt 0:00:56]} 48. Kd4 {[%emt 0:01:27]} Be8 {[%emt 0:00:24]} 49. Kxd3 {[%emt 0:01:00]} Bf7 {[%emt 0:00:18]} 50. Ke4 1/2-1/2

[Event "WYCC 2018 G18"]
[Site "Halkidiki"]
[Date "2018.10.27"]
[Round "8"]
[White "Vlkova, Anezka"]
[Black "Represa Perez, Mireya"]
[Result "0-1"]
[ECO "B23"]
[WhiteElo "1925"]
[BlackElo "2151"]
[Annotator "NA"]
[PlyCount "52"]
[EventDate "2018.10.20"]
[EventType "swiss"]
[EventCountry "GRE"]
[SourceTitle "playchess.com"]
[Source "ChessBase"]
[SourceQuality "1"]
[TimeControl "40/5400+30:1800+30"]

1. e4 c5 2. Nc3 a6 3. g3 b5 4. Bg2 Bb7 5. d3 e6 6. Nh3 Be7 7. O-O b4 8. Ne2 Nc6 9. f4 d5 10. Nf2 Nf6 $11 11. a3 a5 12. h3 O-O 13. g4 Ne8 14. exd5 exd5 15. Ng3 g6 16. g5 f6 17. gxf6 Bxf6 18. f5 Be5 19. Bh6 Ng7 20. Ng4 Bxg3 21. f6 Nf5 22. Bxf8 Kxf8 23. Qd2 Ncd4 24. axb4 cxb4 25. Ra2 Qb6 26. Kh1 Bd6 0-1